Cogmind - Beta 11 @@@ ROGUE MODE // 2022.04.03 @ 12:46:55 Player: Red Box Result: Self-destructed Performance ------------- Evolutions (2) 1000 Regions Visited (5) 1000 Robots Destroyed (58) 290 Value Destroyed (1405) 1405 Prototype IDs (2) 40 Alien Tech Used (0) 0 Bonus (67) 67 TOTAL SCORE: 3802 Bonus ------- High Alert Combat Kills 28 Follower Combat Kills 39 Cogmind --------- Core Integrity 314/550 Matter 300/300 Energy 275/275 System Corruption 0% Temperature Cool (0) Movement Rolling (108) Ox1 Location -8/Materials Parts ------- > --- POWER (1) -------- Deuterium Engine > --- PROPULSION (3) --- Wheel Compact Wheel Compact Wheel > --- UTILITY (4) ------ Improved Heat Sink High-capacity Storage Unit Improved Targeting Computer Hacking Suite > --- WEAPON (3) ------- Spread Laser Autogun Autogun > --- INVENTORY (20) --- Wheel Improved Heat Sink Large Storage Unit High-capacity Battery (250) Improved Sensor Array Improved Signal Interpreter Improved Terrain Scanner Weapon Shielding Heavy Armor Plating Hardened Medium Armor Plating System Shield EM Pulse Cannon Beam Cannon Beam Cannon Beam Cannon Makeshift Shrapnel Gun Light Cannon Grenade Launcher Scythe Peak State ------------ > --- POWER ------------ Deuterium Engine > --- PROPULSION ------- Compact Wheel Compact Wheel Compact Wheel > --- UTILITY ---------- Improved Heat Sink High-capacity Storage Unit Improved Light Armor Plating Hacking Suite > --- WEAPON ----------- Beam Rifle Spread Laser Makeshift Shrapnel Gun > --- INVENTORY -------- Compact Wheel Compact Wheel Large Storage Unit High-capacity Battery Improved Terrain Scanner Force Booster Weapon Shielding Heavy Armor Plating Beam Rifle Beam Cannon Beam Cannon Beam Cannon Assault Rifle Assault Rifle Heavy Assault Rifle Autogun Autogun Grenade Launcher Mining Claw [Rating: 27] Favorites ----------- Power Ion Engine Engine Ion Engine Power Core Light Nuclear Core Propulsion Wheel Leg Aluminum Leg Wheel Wheel Utility High-capacity Storage Unit Device Improved Terrain Scanner Storage High-capacity Storage Unit Processor Improved Targeting Computer Hackware Hacking Suite Protection Improved Light Armor Plating Weapon Medium Laser Energy Gun Medium Laser Energy Cannon Beam Cannon Ballistic Gun Assault Rifle Launcher Grenade Launcher Slashing Weapon Mining Claw Build | -11 -10 -10 -10 -9 -8 ------- Run | Scr Mat Min Exi Min Mat Slots Evolved 4 | . . . . . 4 Power . | . . . . . . Propulsion 1 | . . . . . 1 Utility 2 | . . . . . 2 Weapon 1 | . . . . . 1 Parts Attached 63 | 9 13 10 . 4 27 Power 4 | 1 1 . . 1 1 Engine 3 | 1 1 . . . 1 Core 1 | . . . . 1 . Reactor . | . . . . . . Propulsion 19 | 4 2 6 . 2 5 Treads . | . . . . . . Leg 2 | 2 . . . . . Wheel 17 | 2 2 6 . 2 5 Hover . | . . . . . . Flight . | . . . . . . Utility 10 | 2 2 1 . . 5 Device 3 | 1 . 1 . . 1 Storage 3 | 1 2 . . . . Processor 2 | . . . . . 2 Hackware 1 | . . . . . 1 Protection 1 | . . . . . 1 Artifact . | . . . . . . Weapon 30 | 2 8 3 . 1 16 Energy Gun 7 | . 1 2 . . 4 Energy Cannon 2 | . . . . 1 1 Ballistic Gun 18 | 2 5 . . . 11 Ballistic Cannon . | . . . . . . Launcher 2 | . 1 1 . . . Special Weapon . | . . . . . . Impact Weapon . | . . . . . . Slashing Weapon 1 | . 1 . . . . Piercing Weapon . | . . . . . . Special Melee Weapon . | . . . . . . Unidentified Prototypes . | . . . . . . Parts Lost 15 | . . 1 . 3 11 Power 2 | . . . . 1 1 Propulsion 6 | . . . . 2 4 Utility 2 | . . . . . 2 Weapon 5 | . . 1 . . 4 Highest Loss Streak 3 | . . 1 . 2 3 To Critical Strikes . | . . . . . . Average Slot Usage (%) 98 | . 98 99 100 99 93 Engine 11 | . 14 14 14 8 6 Core 1 | . . . . 5 . Wheel 27 | . 27 28 28 27 25 Device 13 | . 14 14 14 14 8 Storage 13 | . 14 14 14 14 9 Processor 1 | . . . . . 5 Hackware 1 | . . . . . 8 Energy Gun 13 | . 1 13 28 16 16 Energy Cannon 2 | . . . . 11 1 Ballistic Gun 9 | . 25 7 . . 6 Launcher 2 | . . 6 . . . Naked Turns . | . . . . . . Heaviest Build 62 | 13 50 51 50 51 62 Greatest Support 48 | 20 20 20 20 26 48 Greatest Overweight (x) 5 | 1 2 2 2 5 1 Average Overweight (x) 1 | . . 2 2 1 1 Largest Inventory Capacity 20 | 8 20 20 20 20 20 Average Capacity 18 | 7 13 20 20 20 20 Most Carried 20 | 8 17 20 20 20 20 Average Carried 17 | 6 11 19 19 19 19 Final Capacity 20 | 8 20 20 20 20 20 Final Carried 20 | 8 16 20 20 18 20 Class Distribution -------------------- 80% | Mutant 8% | Scavenger-Gunner 5% | Scavenger-Mutant 3% | Scavenger-Tank Dominant Class ---------------- Mutant | -10/Materials Mutant | -10/Mines Mutant | -10/Exiles Mutant | -9/Mines Scavenger-Gunner | -8/Materials Resources | -11 -10 -10 -10 -9 -8 ----------- Run | Scr Mat Min Exi Min Mat Matter Collected 1170 | 313 260 147 . 40 410 Remotely . | . . . . . . Salvage Created 1581 | 116 311 135 . 254 765 Parts 101 | 12 19 7 . 13 50 Haulers Intercepted 1 | . 1 . . . . Recyclers Shooed 2 | 1 . . . . 1 Parts Field Recycled . | . . . . . . Retrieved Matter . | . . . . . . Parts Self-Destructed . | . . . . . . Prevented . | . . . . . . Kills | -11 -10 -10 -10 -9 -8 ------- Run | Scr Mat Min Exi Min Mat Combat Hostiles Destroyed 45 | . 11 6 . 8 20 Melee 2 | . 2 . . . . Guns 32 | . 7 3 . 4 18 Cannons 5 | . . . . 4 1 AOE 5 | . 2 3 . . . Classes Destroyed 11 | 2 3 2 . 2 2 Worker 2 | . . . . 1 1 Tunneler 7 | 4 1 1 . . 1 Hauler 1 | . 1 . . . . Recycler 2 | 1 . . . . 1 Watcher 2 | . . . . . 2 Swarmer 19 | . 6 3 . 3 7 Grunt 18 | . 5 1 . 4 8 Duelist 1 | . . . . 1 . Sentry 5 | . . . . . 5 Demolisher 1 | . . 1 . . . Assembled 1 | . . 1 . . . Best Kill Streak 5 | 3 4 4 . 4 5 Combat Bots Only 4 | . 4 3 . 4 4 Max Kills in Single Turn 4 | 1 2 4 . 2 2 Gunslinging 1 | . . . . . 1 Exploded 3 | . 1 3 . . . Melee 1 | . 1 . . . . Uniques/NPCs Destroyed . | . . . . . . Combat | -11 -10 -10 -10 -9 -8 -------- Run | Scr Mat Min Exi Min Mat Damage Taken 1785 | . 245 193 . 428 919 Core 421 | . 20 14 . 151 236 Absorbed by Shields . | . . . . . . Regen/Repaired (Parts) 56 | . 56 . . . . Core Remaining (%) 63 | 100 . . . 26 . Volleys Fired 145 | 23 32 11 . 23 56 Largest 3 | 2 2 2 . 2 3 Hottest 177 | 40 95 100 . 110 177 Shots Fired 323 | 46 63 17 . 46 151 Gun 284 | 46 61 16 . 23 138 Cannon 36 | . . . . 23 13 Launcher 3 | . 2 1 . . . Special . | . . . . . . Kinetic 152 | 46 55 14 . . 37 Thermal 168 | . 6 2 . 46 114 Explosive 3 | . 2 1 . . . Electromagnetic . | . . . . . . Robot Hit Streak 18 | 5 9 7 . 9 18 Robot Miss Streak 7 | 4 5 1 . 4 7 Penetration Max . | . . . . . . Secondary Targets 4 | . 1 . . . 3 Max Gunslinging Chain 1 | . 1 . . . 1 Shots Hit Robots 198 | 24 39 11 . 26 98 Core Hits 148 | 10 20 11 . 14 93 Critical Kills . | . . . . . . Critical Parts Destroyed 1 | . . . . . 1 Critical Strikes 4 | . . . . 1 3 Burn 3 | . . . . 1 2 Destroy 1 | . . . . . 1 Melee Attacks 4 | . 4 . . . . Impact . | . . . . . . Slashing 4 | . 4 . . . . Piercing . | . . . . . . Sneak Attacks . | . . . . . . Combat Hostiles . | . . . . . . Follow-up Attacks . | . . . . . . Damage Inflicted 2945 | 177 561 250 . 439 1518 Guns 2215 | 177 378 137 . 163 1360 Cannons 434 | . . . . 276 158 Explosions 230 | . 117 113 . . . Melee 66 | . 66 . . . . Ramming . | . . . . . . Kinetic 902 | 177 314 125 . . 286 Thermal 1747 | . 64 12 . 439 1232 Explosive 230 | . 117 113 . . . Electromagnetic . | . . . . . . Impact . | . . . . . . Slashing 66 | . 66 . . . . Piercing . | . . . . . . Highest Corruption . | . . . . . . Average Corruption . | . . . . . . Corruption Purged . | . . . . . . Corruption Blocked . | . . . . . . Overload Shots . | . . . . . . Overflow Damage 45 | . 30 12 . . 3 Projectiles 3 | . . . . . 3 Explosions 42 | . 30 12 . . . Melee . | . . . . . . Knockbacks . | . . . . . . Impact . | . . . . . . Kinetic . | . . . . . . Secondary . | . . . . . . Self-Inflicted Damage . | . . . . . . Shots . | . . . . . . Rammed . | . . . . . . Targets Rammed . | . . . . . . Kicked . | . . . . . . Crushed . | . . . . . . Highest Temperature 513 | . 80 2 . 148 513 Average Temperature 101 | . 34 2 . 54 129 Received Heat Transfer 708 | . 72 27 . 141 468 Effects 7 | . . . . . 7 Shutdowns 1 | . . . . . 1 Energy Bleed 2 | . . . . . 2 Matter Decay 1 | . . . . . 1 Short Circuit 1 | . . . . . 1 Damage (minor) 1 | . . . . . 1 Damage (major) 1 | . . . . . 1 Siege Activations . | . . . . . . Robots Corrupted . | . . . . . . Combat Hostiles . | . . . . . . Parts Fried . | . . . . . . Impact Corruptions . | . . . . . . Robots Melted 1 | . . . . . 1 Combat Hostiles 1 | . . . . . 1 Parts Melted 7 | . . . . 2 5 Heat Transferred 3713 | . 148 37 . 1147 2381 Parts Sabotaged . | . . . . . . Parts Stolen . | . . . . . . Parts Stripped . | . . . . . . Power Chain Reactions . | . . . . . . Missiles Intercepted . | . . . . . . Alert | -11 -10 -10 -10 -9 -8 ------- Run | Scr Mat Min Exi Min Mat Peak Influence 478 | 25 320 171 . 225 478 Initial 87 | . 16 . . . 87 Average 85 | 11 101 33 . 54 235 Maximum Alert Level 2 | . 1 . . 1 2 Low Security (%) 85 | 100 92 100 . 91 37 Level 1 12 | . 7 . . 8 52 Level 2 1 | . . . . . 9 Level 3 . | . . . . . . Level 4 . | . . . . . . Level 5 . | . . . . . . High Security . | . . . . . . Max Security . | . . . . . . Squads Dispatched 5 | . 1 . . . 4 Investigation 2 | . 1 . . . 1 Extermination . | . . . . . . Reinforcement 3 | . . . . . 3 Assault . | . . . . . . Garrison . | . . . . . . Intercept . | . . . . . . Searches Triggered . | . . . . . . Construction Impeded . | . . . . . . Haulers Reinforced . | . . . . . . Active Scanning Responses . | . . . . . . Cargo Convoy Interrupts . | . . . . . . Stealth | -11 -10 -10 -10 -9 -8 --------- Run | Scr Mat Min Exi Min Mat Distress Signals 7 | . 4 2 . . 1 Communications Jammed . | . . . . . . Distress Signals . | . . . . . . Times Spotted 84 | . 25 10 . 13 36 Peak Tracking Total 7 | . 5 4 . 5 7 Tactical Retreats 7 | . 1 1 . 3 2 Traps | -11 -10 -10 -10 -9 -8 ------- Run | Scr Mat Min Exi Min Mat Traps Triggered 1 | . . . . . 1 Indirectly . | . . . . . . Trap Hack Attempts . | . . . . . . Triggered . | . . . . . . Disarmed . | . . . . . . Reprogrammed . | . . . . . . Reused . | . . . . . . Traps Extracted . | . . . . . . Installed . | . . . . . . Triggered . | . . . . . . Machines | -11 -10 -10 -10 -9 -8 ---------- Run | Scr Mat Min Exi Min Mat Machines Disabled 2 | . 1 1 . . . Max in Single Turn 1 | . 1 1 . . . Machines Sabotaged . | . . . . . . Garrisons Compromised . | . . . . . . Overloaded Fab Kills . | . . . . . . Hacking | -11 -10 -10 -10 -9 -8 --------- Run | Scr Mat Min Exi Min Mat Machines Accessed 14 | . 7 1 1 . 5 Terminals 10 | . 5 1 . . 4 Fabricators . | . . . . . . Repair Stations 1 | . 1 . . . . Recycling Units 2 | . 1 . . . 1 Scanalyzers . | . . . . . . Garrison Access . | . . . . . . Total Hacks 43 | . 22 2 4 . 15 Successful 23 | . 11 . 4 . 8 Failed 20 | . 11 2 . . 7 Catastrophic 3 | . 1 1 . . 1 Database Lockouts . | . . . . . . Manual 18 | . 8 1 . . 9 Terminals 30 | . 16 2 . . 12 Fabricators . | . . . . . . Repair Stations 4 | . 4 . . . . Recycling Units 5 | . 2 . . . 3 Scanalyzers . | . . . . . . Garrison Access . | . . . . . . Terminal Hacks 9 | . 3 . 4 . 2 Record 4 | . . . 4 . . Robot Analysis 1 | . 1 . . . . Prototype ID Bank 1 | . 1 . . . . Unreport Threat 2 | . 1 . . . 1 Locate Traps 1 | . . . . . 1 Fabricator Hacks . | . . . . . . Repair Station Hacks 4 | . 4 . . . . Scan Component 2 | . 2 . . . . Repair 2 | . 2 . . . . Recycling Unit Hacks 1 | . . . . . 1 Retrieve Components 1 | . . . . . 1 Scanalyzer . | . . . . . . Garrison Access Hacks . | . . . . . . Unauthorized Hacks 9 | . 4 . . . 5 Terminals 7 | . 3 . . . 4 Botnet 5 | . 2 . . . 3 Operators 2 | . 1 . . . 1 Fabricators . | . . . . . . Repair Stations . | . . . . . . Recycling Units 2 | . 1 . . . 1 Reject 2 | . 1 . . . 1 Scanalyzers . | . . . . . . Garrison Access . | . . . . . . Data Cores Recovered . | . . . . . . Used . | . . . . . . Hacking Detections 13 | . 7 1 . . 5 Full Trace Events 1 | . 1 . . . . Feedback Events . | . . . . . . Feedback Blocked . | . . . . . . Robot Schematics Acquired . | . . . . . . Robots Built . | . . . . . . Authchips . | . . . . . . Time . | . . . . . . Total Robot Build Rating . | . . . . . . Part Schematics Acquired . | . . . . . . Parts Built . | . . . . . . Authchips . | . . . . . . Time . | . . . . . . Total Part Build Rating . | . . . . . . Parts Repaired 2 | . 2 . . . . Time 52 | . 52 . . . . Parts Recycled . | . . . . . . Recycled Matter . | . . . . . . Retrieved Matter . | . . . . . . Retrieved Components 1 | . . . . . 1 Parts Scanalyzed . | . . . . . . Part Schematics Acquired . | . . . . . . Parts Damaged . | . . . . . . Bothacking | -11 -10 -10 -10 -9 -8 ------------ Run | Scr Mat Min Exi Min Mat Used RIF Installer . | . . . . . . Robots Hacked . | . . . . . . Non-combat . | . . . . . . Combat . | . . . . . . Robot Hacks Applied . | . . . . . . Relay Couplers Released . | . . . . . . Fabnet Peak Effective % . | . . . . . . Robots Rewired . | . . . . . . Allies Hacked . | . . . . . . Hacks Repelled . | . . . . . . Allies | -11 -10 -10 -10 -9 -8 -------- Run | Scr Mat Min Exi Min Mat Total Allies 4 | . . 4 . . . Largest Group 4 | . . 4 . . . Highest-Rated Group 71 | . . 71 . . . Highest-Rated Ally 31 | . . 31 . . . Total Orders . | . . . . . . Ally Attacks 7 | . . 7 . . . Total Damage 90 | . . 90 . . . Kills 2 | . . 2 . . . Allies Corrupted . | . . . . . . Allies Melted . | . . . . . . Intel | -11 -10 -10 -10 -9 -8 ------- Run | Scr Mat Min Exi Min Mat Robot Analysis Total 1 | . 1 . . . . Derelict Logs Recovered 2 | . . 1 . 1 . Drone Launches . | . . . . . . Drone Recoveries . | . . . . . . Exploration | -11 -10 -10 -10 -9 -8 ------------- Run | Scr Mat Min Exi Min Mat Turns Passed 4694 | 221 818 1787 273 779 816 Spaces Moved 3036 | 109 638 1004 247 592 446 Core 3 | 3 . . . . . Treads . | . . . . . . Legs 86 | 86 . . . . . Wheels 2947 | 20 638 1004 247 592 446 Hover . | . . . . . . Flight . | . . . . . . Fastest Speed 50 | 50 80 110 110 105 108 Average Speed 106 | 117 92 110 110 108 113 Slowest Speed 190 | 190 110 110 110 155 115 Overloaded Moves . | . . . . . . Propulsion Burnouts . | . . . . . . Robots Hopped . | . . . . . . Cave-ins Triggered . | . . . . . . Exploration Rate (%) 63 | 6 79 98 63 97 39 Regions Visited 5 Branch Regions 3 Pre-discovered Areas 3 | . . 1 1 1 . Known Exits Taken . | . . . . . . Unknown Exits Taken 5 | 1 1 1 1 1 . Scrap Searched 2 | . . 1 . 1 . Spaces Dug . | . . . . . . Terrain Destroyed 11 | . 4 7 . . . Melee . | . . . . . . Projectile . | . . . . . . AOE 11 | . 4 7 . . . Terrain Rammed . | . . . . . . Walls Destroyed . | . . . . . . Machines Disabled . | . . . . . . Actions | -11 -10 -10 -10 -9 -8 --------- Run | Scr Mat Min Exi Min Mat Total 4205 | 162 799 1674 248 684 638 Wait 849 | 7 88 615 . 60 79 Move 3031 | 108 637 1003 246 591 446 Hop . | . . . . . . Pick Up 69 | 12 14 18 1 3 21 Fast Attach 18 | 6 5 2 . 1 4 Attach 18 | 1 . . . 3 14 Detach . | . . . . . . Swap 27 | 2 8 8 . . 9 Drop 44 | 3 11 17 1 3 9 Fire 145 | 23 32 11 . 23 56 Melee 4 | . 4 . . . . Ram . | . . . . . . Kick . | . . . . . . Crush . | . . . . . . Escape Stasis . | . . . . . . Rewire . | . . . . . . Trap . | . . . . . . Miscellaneous . | . . . . . . Route ------- -11/Scrapyard -10/Materials (discovered 3 exits: [*Mat x2] / *Min) -10/Mines (discovered 3 exits: [*Mat x2] / *Exi) -10/Exiles -9/Mines (discovered 2 exits: *Mat x2) -8/Materials (discovered 2 exits: *Fac x2) History --------- Turn | Location | Event 19 | -11/Scrapyard | Discovered new exit (range 16) 222 | -11/Scrapyard | Entered Materials 316 | -10/Materials | Build established: Mutant 333 | -10/Materials | Discovered new exit (range 14) 518 | -10/Materials | Discovered new exit (range 11) 614 | -10/Materials | Discovered new exit (range 6) 878 | -10/Materials | Repaired Wheel 906 | -10/Materials | Repaired Wheel 1040 | -10/Materials | Entered Mines 1048 | -10/Mines | Assembled infested the area 1126 | -10/Mines | Assisted by bots powering up and referring to "LRC-V3" 1236 | -10/Mines | Received a Mining Laser from a helpful Derelict 1287 | -10/Mines | Discovered new exit (range 13) 1455 | -10/Mines | Deemed a non-threat by the Exiles lab entrance 1455 | -10/Mines | Discovered new exit (range 5) 1499 | -10/Mines | Learned location of Recycling (-7) 1961 | -10/Mines | Joined a pair of Derelicts in attacking an 0b10 outpost 2571 | -10/Mines | Discovered new exit (range 4) 2827 | -10/Mines | Entered Exiles 2855 | -10/Exiles | Met 8R-AWN 2874 | -10/Exiles | Met EX-HEX 2915 | -10/Exiles | Met EX-DEC 2922 | -10/Exiles | Learned location of Zion (-7) 2967 | -10/Exiles | Visited The Gauntlet 3085 | -10/Exiles | Discovered new exit (range 14) 3100 | -10/Exiles | Entered Mines 3172 | -9/Mines | YI-UF0 nonchalantly dropped a Grenade Launcher on the ground 3259 | -9/Mines | A weapon hastily lodged in a ceiling crevice suddenly fell to the ground 3317 | -9/Mines | Learned location of Storage (-7) 3486 | -9/Mines | Discovered new exit (range 8) 3663 | -9/Mines | Discovered new exit (range 7) 3738 | -9/Mines | Learned location of 2 exits from Materials 3810 | -9/Mines | Core integrity fell below 50% 3879 | -9/Mines | Entered Materials 3879 | -8/Materials | Evolved 4 slots: Propulsion x1, Utility x2, Weapon x1 3880 | -8/Materials | Identified exit to Factory 3985 | -8/Materials | Lost 3 parts (1p1n1w) 4500 | -8/Materials | Build established: Scavenger-Gunner 4695 | -8/Materials | Self-destructed Last Messages --------------- 04633_ Acquired Wheel. 04634_ Acquired 10 matter. 04637_ Acquired Wheel. 04641_ K-01 Serf cleans the Fusion Modulator. 04645_ K-01 Serf cleans the Terminal. 04646_ R-06 Scavenger collects Lgt. Nuclear Core. 04648_ Acquired 1 matter. 04649_ K-01 Serf cleans the Terminal. 04649_ K-01 Serf cleans the Nuclear Reactor. 04650_ Acquired 19 matter. 04650_ R-06 Scavenger collects Aluminum Leg. 04652_ K-01 Serf cleans the Terminal. 04652_ K-01 Serf cleans the Nuclear Reactor. 04654_ R-06 Scavenger collects Lgt. Nuclear Core. 04657_ K-01 Serf cleans the Nuclear Reactor. 04659_ R-06 Scavenger collects Particle Gun. 04670_ Acquired EM Pulse Cannon. 04686_ ALERT: Hostiles spotted, dispatching reinforcements to Terminal M006. 04695_ Connecting with Scanalyzer... Map ----- +----------------------------------------------------+ | ?????????????????????????????""" # ! | | ????????????????????????????? # | | ????????????????????????????######### """ | | ??????????????????????????????####### ! """ | | ??????????????????????????????#| # ! """ | | ??????????????????????????????# ""# ! o | | ??????????????????????????????# ""# o | | ??????????????????????????????# T"# ######## | | ??????????????????????????????# ""# #### ### | | ??????????????????????????????# [[""# # |=# | | ??????????????????????????????# # # = # | | ?????????????????????????????####+### # # | | ?????????????????????????????# %%! # " " + | | ?????????????????????????????+ = % # "Y" # | | ???????????? ??????????????# + """ # | | ??????????? ??????????????### ############### | | ??????????? ???????????????##/#####?######### | | ??????????? ???????????????# #?# ## | | ???????????# ???????????????#= ""#?# !## | | ???????????# ??????########?# T"#?# ![* ## | | ???????????# ??????# ! #?# ""#?# !*[ ## | | ???????????# #?????# #?# #?# ## % | | ???????##### #?????#= "" #?# [ #?# ## | | ???????#// #?????# """#?####+########+### | | ???????#// #?????# S"#???# | | ???????#]] +?????# @ #???# | | ???????#]] #?????###+####???# * | | ???????#== ####### #????# ######## = | | ???????#== ! ###### #?????####+ | | ???????##### #?????# | | ???????????# ###### ####### " | | ???????????#######+### #????# % + "" | | ???????????# [### ###????# ##### ####= "" | | ???????????# #?# #??????# #???# #??# "" | | ???????????# #?# #???#####+###### #??# " | | ???????????# #?# #???# ## #??# | | ???????????#########/### #???# T ## #??# | | ???????????????# [##### % ## #??# | | ???????????????# [% %o """ """ ## #??##### | | ???????????????# #####%""" """ ##%######## | | ???????????????# ### #???#[""" """ ## | | ???????????????#+??# #???#= [!! ## ######## | | ???????????????????# #???#[%!= ## ######## | | ???????????????????# #???############ # ! # | | ???????????????????# #??????????????# # # | | ???????????????????# #??????????????# # !! # | | ???????????????????+ #??????????????# + !! # | | ???????????????????# #????###########=# # | | ???????????????????# #????# # # [ # | | ???????????????????# #????# ######## | +----------------------------------------------------+ Best States ------------- Heat Dissipation 45 Energy Generation 14 Energy Capacity 275 Matter Stores 300 Matter Capacity 300 Sight Range 16 Terrain Scan Range 16 Terrain Scan Density 10 Armor Coverage 150 Evasion (%) 55 Targeting Accuracy 6 Offensive Hacking 10 Item Schematics ----------------- None Robot Schematics ------------------ None Fabricated ------------ Nothing Alien Tech Used ----------------- None Achievements -------------- None Challenges ------------ None Game ------ Seed AutogunLatentDrive Manual? 0 Play Time 00:42:26 Cumulative 225.9 hours Start 2022.04.03 @ 02:02:11 End 2022.04.03 @ 12:46:55 Sessions 3 Manual Loads 0 Difficulty Rogue Special Mode None Game No. 201 Rogue 201 Adventurer 0 Explorer 0 Win Type - Total 0 Types 0/0/0/0/0/0/0/0/0 Lore% 48 Gallery% 51 Achievement% 39 Wizard Run 0 Options --------- ASCII 0 Keyboard 0 Movement Mouse Keybinds 0 Fullscreen 1 Font 16/SmallcapsGlow Map View 75x55 Tactical HUD 1 Map Filters NONE Filters NONE Steam 1 RUN: 43d8deec-ee26-4646-8ff1-2161adee712b